bitfinex/quotes_BTCUSD_20241215
["timestamp","ask_amount","ask_price","bid_price","bid_amount"]
[1734279764825,0.40564909,103100.0,103080.0,0.08]
[1734279765038,0.40564909,103100.0,103080.0,0.103]
[1734279765039,0.194005,103090.0,103080.0,0.103]
[1734279765445,0.194005,103090.0,103080.0,0.023]
[1734279768766,0.40564909,103100.0,103080.0,0.023]
[1734279768971,0.59965009,103100.0,103080.0,0.023]
[1734279769518,0.40564909,103100.0,103080.0,0.023]
[1734279770021,0.21165109,103100.0,103080.0,0.217023]
[1734279771174,0.21165109,103100.0,103080.0,0.265223]
[1734279771393,0.21165109,103100.0,103080.0,0.346923]
[1734279771806,0.21165109,103100.0,103090.0,0.023]
[1734279771807,0.01765609,103100.0,103090.0,0.023]
[1734279773667,0.01765609,103100.0,103090.0,0.31541414]
[1734279773874,0.01765609,103100.0,103090.0,0.31444419]
[1734279774074,0.00025012,103100.0,103090.0,0.31444419]
[1734279775913,0.00025012,103100.0,103090.0,0.217005]
[1734279776317,0.00025012,103100.0,103090.0,0.023]
[1734279779529,0.19423612,103100.0,103080.0,0.0817]
[1734279779794,0.194005,103090.0,103080.0,0.023]
[1734279780373,0.66323612,103100.0,103080.0,0.023]
[1734279781239,0.66323712,103100.0,103080.0,0.023]
[1734279783095,0.68089885,103100.0,103080.0,0.023]
[1734279783510,0.68089585,103100.0,103080.0,0.023]
[1734279784541,0.194005,103090.0,103080.0,0.023]
[1734279784965,0.29289785,103100.0,103080.0,0.023]
[1734279785172,0.48689785,103100.0,103080.0,0.023]
[1734279785824,0.68090185,103100.0,103080.0,0.023]
[1734279786034,0.194005,103090.0,103080.0,0.023]
[1734279786915,0.388023,103090.0,103070.0,0.31505837]
[1734279787115,0.388023,103090.0,103070.0,0.2284]
[1734279787341,0.194024,103080.0,103070.0,0.2284]
[1734279787674,0.194024,103080.0,103070.0,0.2514]
[1734279787900,0.388023,103090.0,103070.0,0.2514]
[1734279790365,0.388023,103090.0,103070.0,0.54288019]
[1734279792138,0.67340529,103100.0,103070.0,0.73691319]
[1734279792347,0.96646132,103100.0,103070.0,0.73691319]
[1734279792549,0.21189885,103100.0,103080.0,0.29146119]
[1734279793396,0.01791185,103100.0,103090.0,0.0799]
[1734279793603,0.01791185,103100.0,103090.0,0.39434419]
[1734279794277,0.01791185,103100.0,103090.0,0.296905]
[1734279794686,0.01791185,103100.0,103090.0,0.1029]
[1734279799376,0.01791185,103100.0,103090.0,0.39434419]
[1734279804103,0.01791185,103100.0,103090.0,0.49339822]
[1734279805700,0.01791185,103100.0,103090.0,0.58002172]
[1734279807519,0.00025012,103100.0,103090.0,0.58002172]
[1734279807722,0.00025012,103100.0,103090.0,0.73002172]
[1734279808779,0.00025012,103100.0,103090.0,1.18567993]
[1734279808987,0.00025012,103100.0,103090.0,1.35892693]
[1734279810020,0.00025012,103100.0,103090.0,1.18567993]
[1734279810934,0.00025012,103100.0,103090.0,1.17957215]
[1734279813633,0.00225012,103100.0,103090.0,1.17957215]
[1734279817303,0.00225012,103100.0,103090.0,1.17944955]
[1734279818030,0.00225012,103100.0,103090.0,1.2099763]
[1734279818651,0.00225012,103100.0,103090.0,0.89037472]
[1734279819645,0.00225012,103100.0,103090.0,0.76050487]
[1734279820055,0.00225012,103100.0,103090.0,0.89037472]
[1734279820460,0.00225012,103100.0,103090.0,0.76050487]
[1734279822857,0.00225012,103100.0,103090.0,0.6965219]
[1734279825590,0.00225012,103100.0,103090.0,0.76050487]
[1734279826688,0.00225012,103100.0,103090.0,0.6965219]
[1734279827479,0.00225012,103100.0,103090.0,0.609942]
[1734279827748,0.00225012,103100.0,103090.0,0.6965219]
[1734279828295,0.00225012,103100.0,103090.0,0.530042]
[1734279829056,0.00225012,103100.0,103090.0,0.15]
[1734279829258,0.19623612,103100.0,103090.0,0.21398297]
[1734279829447,0.27873612,103100.0,103090.0,0.21398297]
[1734279830208,0.27873612,103100.0,103090.0,0.23698297]
[1734279833131,0.194005,103090.0,103080.0,0.23661485]
[1734279833340,0.194005,103090.0,103080.0,0.21398297]
[1734279834542,0.194005,103090.0,103080.0,0.23698297]
[1734279835926,0.66673612,103100.0,103080.0,0.23698297]
[1734279836141,0.66673612,103100.0,103080.0,0.43100697]
[1734279836518,0.47273512,103100.0,103090.0,0.06398297]
[1734279836738,0.66673712,103100.0,103080.0,0.43100697]
[1734279839319,0.66673712,103100.0,103080.0,0.43095594]
[1734279840607,0.47273512,103100.0,103080.0,0.43095594]
[1734279842292,0.66673612,103100.0,103080.0,0.43095594]
[1734279845760,0.66673412,103100.0,103080.0,0.43095594]
[1734279845987,0.66673312,103100.0,103080.0,0.43095594]
[1734279846277,0.47273412,103100.0,103080.0,0.43095594]
[1734279846880,0.66673212,103100.0,103080.0,0.43095594]
[1734279848320,0.66673212,103100.0,103080.0,0.23693194]
[1734279848523,0.47273412,103100.0,103080.0,0.23693194]
[1734279848725,0.194005,103090.0,103080.0,0.23693194]
[1734279851207,0.194005,103090.0,103080.0,0.23710434]
[1734279851412,0.194005,103090.0,103080.0,0.17312137]
[1734279851587,0.194005,103090.0,103080.0,0.23710434]
[1734279851991,0.194005,103090.0,103080.0,0.17312137]
[1734279856715,0.20983921,103090.0,103080.0,0.17312137]
[1734279862210,0.19623612,103100.0,103080.0,0.59512641]
[1734279862416,0.00225012,103100.0,103090.0,0.28098797]
[1734279862596,0.00225012,103100.0,103090.0,0.28860891]
[1734279863434,0.00225012,103100.0,103090.0,0.28098797]
[1734279864379,0.01655912,103100.0,103090.0,0.28098797]
[1734279864582,0.00225012,103100.0,103090.0,0.28098797]
[1734279869305,0.00225012,103100.0,103090.0,0.68178217]
[1734279869534,0.00225012,103100.0,103090.0,0.76845265]
[1734279869736,0.00225012,103100.0,103090.0,1.14581129]
[1734279869954,0.00225012,103100.0,103090.0,1.20979426]
[1734279871358,0.00225012,103100.0,103090.0,1.08182832]
[1734279871513,0.00225012,103100.0,103090.0,1.20979426]
[1734279874988,0.00225012,103100.0,103090.0,1.14581129]
[1734279876552,0.00225012,103100.0,103090.0,0.8257581]
[1734279876758,0.00225012,103100.0,103090.0,1.1454536]
[1734279877447,0.00225012,103100.0,103090.0,0.8257581]
[1734279878482,0.00225012,103100.0,103090.0,0.69584844]
[1734279885373,0.00225012,103100.0,103090.0,0.609242]
[1734279887586,0.00225012,103100.0,103090.0,0.6138012]
[1734279888599,0.00225012,103100.0,103090.0,0.69584844]
[1734279889994,0.00225012,103100.0,103090.0,0.69580956]
[1734279891327,0.00225012,103100.0,103090.0,0.609242]
[1734279896202,0.00225012,103100.0,103090.0,0.67322497]
[1734279896428,0.00225012,103100.0,103090.0,0.609242]
[1734279897767,0.00225012,103100.0,103090.0,0.69580956]
[1734279898176,0.00225012,103100.0,103090.0,0.75979253]
[1734279898473,0.00225012,103100.0,103090.0,0.69580956]
[1734279900878,0.00225012,103100.0,103090.0,0.8256609]
[1734279901504,0.00225012,103100.0,103090.0,1.20934675]
[1734279903584,0.00225012,103100.0,103090.0,1.14536378]
[1734279904431,0.00225012,103100.0,103090.0,1.20934675]
[1734279904636,0.00225012,103100.0,103090.0,1.14536378]
[1734279905261,0.00225012,103100.0,103090.0,1.3184989]
[1734279905682,0.00225012,103100.0,103090.0,1.38248187]
[1734279906320,0.00225012,103100.0,103090.0,1.59890078]
[1734279906933,0.00225012,103100.0,103090.0,1.60009613]
[1734279908250,0.00225012,103100.0,103090.0,1.51340303]
[1734279910622,0.00225012,103100.0,103090.0,1.51395945]
[1734279910819,0.00225012,103100.0,103090.0,1.44997648]
[1734279911027,0.00225012,103100.0,103090.0,1.21766143]
[1734279912314,0.00225012,103100.0,103090.0,1.24066143]
[1734279915599,0.00225012,103100.0,103090.0,1.0671604]
[1734279916026,0.00225012,103100.0,103090.0,1.06749792]
[1734279916400,0.01691844,103100.0,103090.0,1.06749792]
[1734279916604,0.21090444,103100.0,103090.0,0.56045592]
[1734279916811,0.21090444,103100.0,103090.0,0.17378973]
[1734279917646,0.29160444,103100.0,103090.0,0.17378973]
[1734279917782,0.29160444,103100.0,103090.0,0.08698297]
[1734279919029,0.53460644,103100.0,103080.0,0.60781972]
[1734279919227,0.53460644,103100.0,103080.0,0.53761145]
[1734279919534,0.194005,103090.0,103080.0,0.32396213]
[1734279920584,0.194005,103090.0,103080.0,0.23715537]
[1734279921742,0.274705,103090.0,103080.0,0.1731724]
[1734279921944,0.274705,103090.0,103080.0,0.23715537]
[1734279922148,0.274705,103090.0,103080.0,0.1501724]
[1734279923352,0.274705,103090.0,103080.0,0.0001724]
[1734279923915,0.323705,103090.0,103080.0,0.0001724]
[1734279924325,0.38768797,103090.0,103080.0,0.0001724]
[1734279924530,0.536742,103090.0,103080.0,0.0001724]
[1734279924751,0.69075324,103090.0,103080.0,0.0001724]
[1734279924959,0.194042,103070.0,103060.0,0.05932797]
[1734279925345,0.194042,103070.0,103050.0,0.68030641]
[1734279925550,0.194042,103070.0,103060.0,0.06398297]
[1734279926371,0.194042,103070.0,103060.0,0.08698297]
[1734279926982,0.194042,103070.0,103060.0,0.023]
[1734279927175,0.194042,103070.0,103060.0,0.08698297]
[1734279928735,0.194042,103070.0,103060.0,0.11698297]
[1734279929143,0.20766484,103070.0,103060.0,0.11698297]
[1734279930031,0.20766484,103070.0,103060.0,0.053]
[1734279930216,0.28836484,103070.0,103060.0,0.053]
[1734279930446,0.28836484,103070.0,103060.0,0.03]
[1734279932814,0.28836484,103070.0,103060.0,0.28]
[1734279934470,0.28836484,103070.0,103060.0,0.25]
[1734279936964,0.28836484,103070.0,103060.0,0.2501724]
[1734279937374,0.28845104,103070.0,103060.0,0.2501724]
[1734279937604,0.28845104,103070.0,103060.0,0.2464724]
[1734279940891,0.01370904,103070.0,103060.0,0.59149934]
[1734279941096,8.62e-05,103070.0,103060.0,0.99397161]
[1734279941320,8.62e-05,103070.0,103060.0,1.05795458]
[1734279941505,8.62e-05,103070.0,103060.0,0.99397161]
[1734279942090,8.62e-05,103070.0,103060.0,0.96505337]
[1734279945014,8.62e-05,103070.0,103060.0,0.99505337]
[1734279945217,8.62e-05,103070.0,103060.0,1.10156494]
[1734279945421,8.62e-05,103070.0,103060.0,1.63641653]
[1734279945635,0.00225012,103100.0,103070.0,0.173]
[1734279945837,0.00225012,103100.0,103090.0,0.28098797]
[1734279946317,0.00225012,103100.0,103090.0,0.023]
[1734279947308,0.00225012,103100.0,103090.0,0.217005]
[1734279947755,0.00225012,103100.0,103080.0,0.481546]
[1734279948104,0.2553218,103100.0,103080.0,0.25799197]
[1734279948305,0.24183812,103100.0,103080.0,0.25799197]
[1734279948510,0.24183812,103100.0,103090.0,0.06398297]
[1734279948714,0.04785012,103100.0,103090.0,0.06398297]
[1734279949097,0.00225012,103100.0,103090.0,0.06398297]
[1734279949926,0.19623612,103100.0,103080.0,0.57650397]
[1734279950391,0.00225012,103100.0,103080.0,0.57650397]
[1734279950635,0.00225012,103100.0,103080.0,0.77051697]
[1734279950886,0.00225012,103100.0,103090.0,0.29485493]
[1734279951093,0.00225012,103100.0,103090.0,0.30855828]
[1734279951658,0.00225012,103100.0,103090.0,0.28098797]
[1734279954427,0.00025012,103100.0,103090.0,0.28098797]
[1734279955094,0.00025012,103100.0,103090.0,0.08698297]
[1734279955253,0.58068492,103140.0,103130.0,1.89486995]
[1734279955596,0.80770489,103140.0,103130.0,1.89486995]
[1734279956443,0.80825085,103140.0,103130.0,1.89486995]
[1734279957979,0.66386375,103140.0,103130.0,1.89486995]
[1734279958173,0.32667065,103140.0,103130.0,1.89486995]
[1734279958345,0.45167065,103140.0,103130.0,1.89486995]
[1734279958524,0.51858115,103140.0,103130.0,1.89486995]
[1734279959347,0.45459818,103140.0,103130.0,1.89486995]
[1734279960375,0.45468438,103140.0,103130.0,1.89486995]
[1734279960785,0.43510556,103140.0,103130.0,1.89486995]
[1734279964127,0.49908853,103140.0,103130.0,1.89486995]
[1734279967818,0.496161,103140.0,103130.0,1.89486995]
[1734279970737,0.58217803,103140.0,103130.0,1.89486995]
[1734279970929,0.646161,103140.0,103130.0,1.89486995]
[1734279971138,0.71014397,103140.0,103130.0,1.89486995]
[1734279971340,0.92707929,103140.0,103130.0,1.89486995]
[1734279971556,1.10062755,103140.0,103130.0,1.89486995]
[1734279971962,1.10354376,103140.0,103130.0,1.89486995]
[1734279972373,1.10359403,103140.0,103130.0,1.89486995]
[1734279972871,1.03961106,103140.0,103130.0,1.89486995]
[1734279973078,0.80205749,103140.0,103130.0,1.89486995]
[1734279973294,0.80205749,103140.0,103130.0,1.89504235]
[1734279973295,0.86604046,103140.0,103130.0,1.89504235]
[1734279973507,0.73586251,103140.0,103130.0,1.89504235]
[1734279973745,0.64907721,103140.0,103130.0,1.89504235]
[1734279974779,0.73586251,103140.0,103130.0,1.89504235]
[1734279975427,0.67187954,103140.0,103130.0,1.89504235]
[1734279975631,0.86604046,103140.0,103130.0,1.89504235]
[1734279976612,0.86610116,103140.0,103130.0,1.89504235]
[1734279976992,0.93008413,103140.0,103130.0,1.89504235]
[1734279977197,1.10370329,103140.0,103130.0,1.89504235]
[1734279978264,1.03972032,103140.0,103130.0,1.89504235]
[1734279978465,1.10370329,103140.0,103130.0,1.89504235]
[1734279978851,1.23391766,103140.0,103130.0,1.89504235]
[1734279979262,1.32075293,103140.0,103130.0,1.89504235]
[1734279979469,1.25676996,103140.0,103130.0,1.89504235]
[1734279979684,1.32075293,103140.0,103130.0,1.89504235]
[1734279980066,1.25676996,103140.0,103130.0,1.89504235]
[1734279980429,1.06778699,103140.0,103130.0,1.89504235]
[1734279980855,0.70076304,103140.0,103130.0,1.89504235]
[1734279981077,0.46009424,103140.0,103130.0,1.89504235]
[1734279981520,0.52407721,103140.0,103130.0,1.89504235]
[1734279981724,0.61094078,103140.0,103130.0,1.89504235]
[1734279983475,0.74123614,103140.0,103130.0,1.89504235]
[1734279983903,0.67725317,103140.0,103130.0,1.89504235]
[1734279984522,0.85098032,103140.0,103130.0,1.89504235]
[1734279985604,1.06813926,103140.0,103130.0,1.89504235]
[1734279986457,0.98127569,103140.0,103130.0,1.89504235]
[1734279987406,0.87096515,103140.0,103130.0,1.27719136]
[1734279987617,1.17227057,103140.0,103130.0,0.05574956]
[1734279987794,0.193986,103100.0,103090.0,0.0801]
[1734279988045,0.29304003,103100.0,103090.0,0.0801]
[1734279988254,0.28111244,103100.0,103090.0,0.14408297]
[1734279988457,0.28111244,103100.0,103090.0,0.0801]
[1734279988667,0.193986,103100.0,103090.0,0.0801]
[1734279989304,0.193986,103100.0,103090.0,0.08026382]
[1734279989514,0.974008,103110.0,103090.0,0.14424679]
[1734279989726,0.28110144,103110.0,103100.0,0.1289]
[1734279990148,0.586018,103120.0,103100.0,0.1289]
[1734279990358,0.60572311,103120.0,103100.0,0.322886]
[1734279990539,0.47503344,103120.0,103100.0,0.322886]
[1734279990795,0.59102392,103120.0,103100.0,0.1289]
[1734279990971,0.193967,103110.0,103100.0,0.1289]
[1734279991185,0.193967,103110.0,103100.0,0.3789]
[1734279991813,0.28107544,103120.0,103100.0,0.572886]
[1734279992030,0.28107544,103120.0,103110.0,0.0801]
[1734279992439,0.193949,103120.0,103110.0,0.0801]
[1734279994533,0.2810513,103120.0,103110.0,0.0801]
[1734279995151,0.193949,103120.0,103110.0,0.0801]
[1734279995569,0.2810513,103120.0,103110.0,0.0801]
[1734279997462,0.2810513,103120.0,103110.0,0.0802724]
[1734279997662,0.41170475,103120.0,103110.0,0.0802724]
[1734280000794,0.58590935,103120.0,103110.0,0.0802724]
[1734280003005,0.7165628,103120.0,103110.0,0.0802724]
[1734280004049,0.80369178,103120.0,103110.0,0.0802724]
[1734280007286,0.58593603,103120.0,103110.0,0.0802724]
[1734280008092,0.39198703,103120.0,103110.0,0.6436628]
[1734280008302,0.21786863,103130.0,103120.0,0.372448]
[1734280008499,8.62e-05,103130.0,103120.0,0.372448]
[1734280009339,8.62e-05,103130.0,103120.0,0.79202543]
[1734280009544,8.62e-05,103130.0,103120.0,1.00868293]
[1734280009973,8.62e-05,103140.0,103130.0,0.1]
[1734280010177,8.62e-05,103140.0,103130.0,0.59904691]
[1734280010414,8.62e-05,103140.0,103130.0,0.81912602]
[1734280010867,8.62e-05,103140.0,103130.0,0.72160262]
[1734280011104,8.62e-05,103140.0,103130.0,0.79200643]
[1734280011311,0.00063216,103140.0,103130.0,0.79200643]
[1734280011937,0.00063216,103140.0,103130.0,0.69448303]
[1734280012144,0.00063216,103140.0,103130.0,0.79200643]
[1734280014986,0.00063216,103140.0,103130.0,3.79200643]
[1734280017828,0.00063216,103140.0,103130.0,3.81912602]
[1734280018912,0.00063216,103140.0,103130.0,3.79200643]
[1734280019981,0.00063216,103140.0,103130.0,3.69448303]
[1734280020414,0.00063216,103140.0,103130.0,3.79200643]
[1734280029792,0.00063216,103140.0,103130.0,3.81912602]
[1734280031453,0.00063216,103140.0,103130.0,3.83884452]
[1734280033411,0.00063216,103140.0,103130.0,3.81172493]
[1734280034038,0.00063216,103140.0,103130.0,3.81189733]
[1734280035767,0.00063216,103140.0,103130.0,3.64465543]
[1734280035988,0.00063216,103140.0,103130.0,3.69465543]
[1734280036187,0.00063216,103140.0,103130.0,3.79217883]
[1734280052013,0.00063216,103140.0,103130.0,3.75860042]
[1734280052207,0.00063216,103140.0,103130.0,3.5456014]
[1734280052421,0.19454316,103140.0,103130.0,3.2001724]
[1734280053292,0.19454316,103140.0,103130.0,3.26411739]
[1734280053962,0.19454316,103140.0,103130.0,3.31411739]
[1734280055434,0.19454316,103140.0,103130.0,3.1001724]
[1734280056219,0.28152081,103140.0,103130.0,3.1001724]
[1734280056489,0.28152081,103140.0,103130.0,3.0501724]
[1734280056950,0.28167104,103140.0,103130.0,3.0501724]
[1734280057532,0.28167104,103140.0,103130.0,3.1001724]
[1734280057695,0.19454316,103140.0,103130.0,3.1001724]
[1734280058746,0.17954316,103140.0,103130.0,3.1001724]
[1734280059478,0.92818816,103150.0,103130.0,3.2941014]
[1734280059728,0.66153218,103150.0,103130.0,3.7794107]
[1734280059980,0.00016372,103150.0,103140.0,0.4913813]
[1734280060238,0.00016372,103150.0,103140.0,0.5664813]
[1734280061745,0.00016372,103150.0,103140.0,0.92258394]
[1734280062037,0.00016372,103150.0,103140.0,1.27412964]
[1734280062311,0.00016372,103150.0,103140.0,1.37159994]
[1734280062570,0.00016372,103150.0,103140.0,1.54475657]
[1734280062829,0.00016372,103150.0,103140.0,1.37159994]
[1734280063371,0.00016372,103150.0,103140.0,1.27412964]
[1734280064413,0.00016372,103150.0,103140.0,1.27403875]
[1734280064670,0.00016372,103150.0,103140.0,0.82511364]
[1734280065203,0.00016372,103150.0,103140.0,1.28971711]
[1734280065680,0.00016372,103150.0,103140.0,0.873222]
[1734280065933,0.00016372,103150.0,103140.0,0.9706923]
[1734280067297,0.00016372,103150.0,103140.0,0.99022596]
[1734280067768,0.00016372,103150.0,103140.0,0.86035849]
[1734280067969,0.00016372,103150.0,103140.0,0.86025849]
[1734280068398,0.00024992,103150.0,103140.0,0.86025849]
[1734280070477,0.00024992,103150.0,103140.0,0.86007325]
[1734280074034,0.00024992,103150.0,103140.0,0.90667325]
[1734280076640,0.00024992,103150.0,103140.0,1.00414355]
[1734280077263,0.00024992,103150.0,103140.0,0.90667325]
[1734280078097,0.00024992,103150.0,103140.0,0.93703921]
[1734280080678,0.00024992,103150.0,103140.0,0.93721161]
[1734280082359,0.00024992,103150.0,103140.0,0.93715345]
[1734280082585,0.00024992,103150.0,103140.0,0.94002345]
[1734280087413,0.00024992,103150.0,103140.0,0.93803505]
[1734280091096,0.00024992,103150.0,103140.0,0.93800445]
[1734280095204,0.00024992,103150.0,103140.0,0.88800445]
[1734280095431,0.00024992,103150.0,103140.0,0.93800445]
[1734280096287,0.00024992,103150.0,103140.0,0.85170014]
[1734280096706,0.00024992,103150.0,103140.0,0.80170014]
[1734280096954,0.00024992,103150.0,103140.0,0.85170014]
[1734280097654,0.00024992,103150.0,103140.0,0.67386388]
[1734280097865,0.00024992,103150.0,103140.0,0.80170014]
[1734280098315,0.00024992,103150.0,103140.0,0.85170014]
[1734280100668,0.00024992,103150.0,103140.0,0.93804486]
[1734280101331,0.00024992,103150.0,103140.0,0.87412673]
[1734280101744,0.00024992,103150.0,103140.0,0.93804486]
[1734280101944,0.00024992,103150.0,103140.0,0.85170014]
[1734280102477,0.00024992,103150.0,103140.0,0.69118201]
[1734280102688,0.00024992,103150.0,103140.0,0.82752673]
[1734280102887,0.00024992,103150.0,103140.0,0.75242673]
[1734280103090,0.12434992,103150.0,103140.0,0.2469534]
[1734280103445,0.00024992,103150.0,103140.0,0.31087153]
[1734280103999,0.00024992,103150.0,103140.0,0.3169305]
[1734280104204,0.00024992,103150.0,103140.0,0.25301237]
[1734280104403,0.00024992,103150.0,103140.0,0.40301237]
[1734280105089,0.00024992,103150.0,103140.0,0.46087153]
[1734280105305,0.00024992,103150.0,103140.0,0.4669305]
[1734280106876,0.00024992,103150.0,103140.0,0.46693047]
[1734280107085,0.00024992,103150.0,103140.0,0.40301234]
[1734280107483,0.07564992,103150.0,103140.0,0.40301234]
[1734280109175,0.26954192,103150.0,103140.0,0.40301234]
[1734280111210,0.26954192,103150.0,103140.0,0.20910134]
[1734280114392,0.07564992,103150.0,103140.0,0.20910134]
[1734280114601,0.07564992,103150.0,103140.0,0.40301234]
[1734280115006,0.26954192,103150.0,103140.0,0.40301234]
[1734280117544,0.26954192,103150.0,103140.0,0.40301272]
[1734280117751,0.26954192,103150.0,103140.0,0.20910172]
[1734280119281,0.26954192,103150.0,103140.0,0.15910172]
[1734280119800,0.26954192,103150.0,103140.0,0.1530424]
[1734280120020,0.26954192,103150.0,103140.0,0.0030424]
[1734280121733,0.36859595,103150.0,103140.0,0.0030424]
[1734280122175,0.45560242,103150.0,103140.0,0.0030424]
[1734280123241,0.36859595,103150.0,103140.0,0.0030424]
[1734280124066,0.41569595,103150.0,103140.0,0.0030424]
[1734280124928,0.50270242,103150.0,103140.0,0.0030424]
[1734280125306,0.63321213,103150.0,103140.0,0.0030424]
[1734280125587,0.50270242,103150.0,103140.0,0.0030424]
[1734280126916,0.50265534,103150.0,103140.0,0.0030424]
[1734280128916,0.63309443,103150.0,103140.0,0.0030424]
[1734280129134,0.65551846,103150.0,103140.0,0.0030424]
[1734280129336,0.69701256,103150.0,103140.0,0.0030424]
[1734280130863,0.87093134,103150.0,103140.0,0.0030424]
[1734280131875,1.00137043,103150.0,103140.0,0.0030424]
[1734280132076,0.87093134,103150.0,103140.0,0.0030424]
[1734280132454,0.85205165,103150.0,103140.0,0.0030424]
[1734280133096,0.91596978,103150.0,103140.0,0.0030424]
[1734280133350,1.17684796,103150.0,103140.0,0.0030424]
[1734280133558,1.17667515,103150.0,103140.0,0.0030424]
[1734280134372,1.11275702,103150.0,103140.0,0.0030424]
[1734280134574,0.85187884,103150.0,103140.0,0.0030424]
[1734280135154,0.91579697,103150.0,103140.0,0.0030424]
[1734280136015,0.91572979,103150.0,103140.0,0.0030424]
[1734280136422,1.08942719,103150.0,103140.0,0.0030424]
[1734280136742,0.96159093,103150.0,103140.0,0.0030424]
[1734280136947,1.17871609,103150.0,103140.0,0.0030424]
[1734280137153,1.02547573,103150.0,103140.0,0.0030424]
[1734280137584,0.87547573,103150.0,103140.0,0.0030424]
[1734280137792,0.70177833,103150.0,103140.0,0.0030424]
[1734280138217,0.87547573,103150.0,103140.0,0.0030424]
[1734280138428,0.70177833,103150.0,103140.0,0.0030424]
[1734280140584,0.65467833,103150.0,103140.0,0.0030424]
[1734280140796,0.57927833,103150.0,103140.0,0.0030424]
[1734280141221,0.57927833,103150.0,103140.0,0.00131827]
[1734280141424,0.5153602,103150.0,103140.0,0.00131827]
[1734280141633,0.57927833,103150.0,103140.0,0.00131827]
[1734280143798,0.51829385,103150.0,103140.0,0.00131827]
[1734280145894,0.58221198,103150.0,103140.0,0.00131827]
[1734280146114,0.75590938,103150.0,103140.0,0.00131827]
[1734280146338,0.75580938,103150.0,103140.0,0.00131827]
[1734280148422,0.97296787,103150.0,103140.0,0.00131827]
[1734280149054,0.97296787,103150.0,103140.0,0.00149067]
[1734280149055,0.96372074,103150.0,103140.0,0.00149067]
[1734280150556,0.96078709,103150.0,103140.0,0.00149067]
[1734280151133,0.83098112,103150.0,103140.0,0.00149067]
[1734280151366,0.75611162,103150.0,103140.0,0.00149067]
[1734280151569,0.91794289,103150.0,103140.0,0.00149067]
[1734280151770,0.96614289,103150.0,103140.0,0.00149067]
[1734280152326,0.74873847,103150.0,103140.0,0.00149067]
[1734280152763,0.9661657,103150.0,103140.0,0.00149067]
[1734280152969,0.74873847,103150.0,103140.0,0.00149067]
[1734280154209,0.70529022,103150.0,103140.0,0.00149067]
[1734280155435,0.96617552,103150.0,103140.0,0.00149067]
[1734280155640,0.74873847,103150.0,103140.0,0.00149067]
[1734280155852,0.96619599,103150.0,103140.0,0.00149067]
[1734280156066,0.90227786,103150.0,103140.0,0.00149067]
[1734280156274,0.96619599,103150.0,103140.0,0.00149067]
[1734280156521,0.74873847,103150.0,103140.0,0.00149067]
[1734280157612,0.74883254,103150.0,103140.0,0.00149067]
[1734280163840,0.84788657,103150.0,103140.0,0.00149067]
[1734280164045,0.99788657,103150.0,103140.0,0.00149067]
[1734280164261,1.0618047,103150.0,103140.0,0.00149067]
[1734280164474,1.29148837,103150.0,103140.0,0.00149067]
[1734280165554,1.030509,103150.0,103140.0,0.00149067]
[1734280165767,1.09442713,103150.0,103140.0,0.00149067]
[1734280166836,1.11742713,103150.0,103140.0,0.00149067]
[1734280167905,0.55344726,103140.0,103130.0,3.0501724]
[1734280168144,0.94645506,103140.0,103130.0,3.0501724]
[1734280169916,1.03404846,103140.0,103130.0,3.0501724]
[1734280172201,0.75964593,103140.0,103130.0,3.0501724]
[1734280172406,1.54645389,103140.0,103130.0,2.9919934]
[1734280172617,1.11750736,103140.0,103130.0,2.9919934]
[1734280172838,1.05358923,103140.0,103130.0,2.9919934]
[1734280173490,1.03719583,103140.0,103130.0,2.9919934]
[1734280173939,0.88635957,103140.0,103130.0,2.9919934]
[1734280174148,1.01419583,103140.0,103130.0,2.9919934]
[1734280175485,1.02772893,103140.0,103130.0,2.9919934]
[1734280178262,0.76999267,103140.0,103130.0,2.9919934]
[1734280178416,0.89782893,103140.0,103130.0,2.9919934]
[1734280179397,0.90287162,103140.0,103130.0,2.9919934]
[1734280180613,1.16370617,103140.0,103130.0,2.9919934]
[1734280181490,0.86999499,103140.0,103130.0,2.9919934]
[1734280182572,0.9026395,103140.0,103130.0,2.9919934]
[1734280183184,0.9027257,103140.0,103130.0,2.9919934]
[1734280187356,0.97397627,103140.0,103130.0,2.9919934]
[1734280187529,0.97397627,103140.0,103130.0,2.9869934]
[1734280188319,0.9027257,103140.0,103130.0,2.9869934]
[1734280189836,0.90269392,103140.0,103130.0,2.9869934]
[1734280197423,0.92569392,103140.0,103130.0,2.9869934]
[1734280197851,0.69593265,103140.0,103130.0,2.9869934]
[1734280198054,0.63201452,103140.0,103130.0,2.9869934]
[1734280198263,0.73106855,103140.0,103130.0,2.9869934]
[1734280200536,0.92591956,103140.0,103130.0,2.9869934]
[1734280200710,0.90291956,103140.0,103130.0,2.9869934]
[1734280201842,0.7750833,103140.0,103130.0,2.9869934]
[1734280202046,0.90291956,103140.0,103130.0,2.9869934]
[1734280205045,0.63201452,103140.0,103130.0,2.9869934]
[1734280205915,1.05597755,103140.0,103130.0,2.9869934]
[1734280206133,0.63201452,103140.0,103130.0,2.9869934]
[1734280207395,0.92608797,103140.0,103130.0,2.82074941]
[1734280207635,1.08906013,103140.0,103130.0,2.79601941]
[1734280207841,1.17510272,103140.0,103130.0,2.60077907]
[1734280208279,1.59906575,103140.0,103130.0,2.56662573]
[1734280208491,1.17510272,103140.0,103130.0,2.48905373]
[1734280209342,1.17510272,103140.0,103130.0,2.43087473]
[1734280209549,1.17510272,103140.0,103130.0,2.41148173]
[1734280209757,1.17510272,103140.0,103130.0,2.39208873]
[1734280210370,1.17510272,103140.0,103130.0,2.37269573]
[1734280210579,1.17510272,103140.0,103130.0,2.29512373]
[1734280211489,1.30232439,103140.0,103130.0,2.16683672]
[1734280211688,1.17518903,103140.0,103130.0,2.02133638]
[1734280212265,1.17518903,103140.0,103130.0,1.94376438]
[1734280212479,1.17518903,103140.0,103130.0,1.92437138]
[1734280213327,1.1112709,103140.0,103130.0,1.92437138]
[1734280213762,0.92911687,103140.0,103130.0,1.92437138]
[1734280213997,0.8964059,103140.0,103130.0,1.92437138]
[1734280214611,0.89640693,103140.0,103130.0,1.92437138]
[1734280215238,0.89640693,103140.0,103130.0,2.00527138]
[1734280219098,0.89641981,103140.0,103130.0,2.00527138]
[1734280219340,0.99547384,103140.0,103130.0,2.00527138]
[1734280219558,0.59558355,103140.0,103130.0,2.05347138]
[1734280219800,0.65950168,103140.0,103130.0,2.05347138]
[1734280220063,0.39803898,103140.0,103130.0,2.05347138]
[1734280220275,0.61590284,103140.0,103130.0,2.05347138]
[1734280221772,0.39803898,103140.0,103130.0,2.05347138]
[1734280221986,0.46195711,103140.0,103130.0,2.05347138]
[1734280222199,0.72341981,103140.0,103130.0,2.05347138]
[1734280222405,0.75610265,103140.0,103130.0,2.05347138]
[1734280222583,0.85515668,103140.0,103130.0,2.05347138]
[1734280222856,0.75610265,103140.0,103130.0,2.05347138]
[1734280226753,1.01744747,103140.0,103130.0,2.05347138]
[1734280226959,0.75610265,103140.0,103130.0,2.05347138]
[1734280227401,0.72329741,103140.0,103130.0,2.05347138]